Workbook

Sheet 4°
A1: K O N I N K L I J K E B E L G I S C H E B I L J A R T B O N D | N1: - | O1: F E D E R A T I O N R O Y A L E B E L G E DE B I L L A R D
F2: VZW - Zetel - " Marie Thérèse " - Martelarenplein, 1 - 3000 Leuven
E3: GEWEST BEIDE VLAANDEREN
L4: 2019 - 2020
A5: UITSLAG GEWESTFINALE 4° : KLASSE VRIJSPEL MB
B7: Inrichting : | E7: ACADEMIE CENTRUM GENT | Q7: TSP | W7: MIN | Y7: MAX
B8: datum : | E8: zondag, 3 november 2019 | Q8: 60 | W8: 3 | Y8: 5
B10: NATID | D10: NAAM | M10: CLUB | O10: WEDP | Q10: BP | S10: Beurten | U10: GEM | W10: HR | Y10: OPM | AA10: Pl
B12: 6428 | D12: =VLOOKUP(B12,LEDEN!A:B,2,FALSE) -> MEULEMAN Rudy | M12: =VLOOKUP(B12,LEDEN!A:C,3,FALSE) -> ACG
B13: 8672 | D13: =VLOOKUP(B13,LEDEN!A:B,2,FALSE) -> DEMOOR Danny | O13: 2 | Q13: 60 | S13: 13 | U13: =IF(S13=0," ",TRUNC(Q13/S13,2)) -> 4.61 | W13: 22 | Y13: =IF(Q13=0,"",IF(U13>=AD13,"PR",IF(U13<AC13,"OG","MG"))) -> MG | AC13: 3 | AD13: 4.99
B14: 6713 | D14: =VLOOKUP(B14,LEDEN!A:B,2,FALSE) -> VAN ACKER Johan | O14: 2 | Q14: 60 | S14: 13 | U14: =IF(S14=0," ",TRUNC(Q14/S14,2)) -> 4.61 | W14: 19 | Y14: =IF(Q14=0,"", IF(U14>=AD14,"PR",IF(U14<AC14,"OG","MG"))) -> MG | AC14: 3 | AD14: 4.99
B15: 7010 | D15: =VLOOKUP(B15,LEDEN!A:B,2,FALSE) -> VERMEULEN Johan | O15: 2 | Q15: 60 | S15: 18 | U15: =IF(S15=0," ",TRUNC(Q15/S15,2)) -> 3.33 | W15: 15 | Y15: =IF(Q15=0,"", IF(U15>=AD15,"PR",IF(U15<AC15,"OG","MG"))) -> MG | AC15: 3 | AD15: 4.99
D16: =VLOOKUP(B16,LEDEN!A:B,2,FALSE) ->  | AC16: 3 | AD16: 4.99
B17: EINDRESULTAAT | O17: =SUM(O13:P16) -> 6 | Q17: =SUM(Q13:R16) -> 180 | S17: =SUM(S13:T16) -> 44 | U17: =IF(S17=0," ",TRUNC(Q17/S17,2)) -> 4.09 | W17: =MAX(W13:X16) -> 22 | Y17: MG | AA17: 1
B19: 8672 | D19: =VLOOKUP(B19,LEDEN!A:B,2,FALSE) -> DEMOOR Danny | M19: =VLOOKUP(B19,LEDEN!A:C,3,FALSE) -> ACG
B20: 6428 | D20: =VLOOKUP(B20,LEDEN!A:B,2,FALSE) -> MEULEMAN Rudy | O20: 0 | Q20: 23 | S20: 13 | U20: =IF(S20=0," ",TRUNC(Q20/S20,2)) -> 1.76 | W20: 6 | Y20: =IF(Q20=0,"", IF(U20>=AD20,"PR",IF(U20<AC20,"OG","MG"))) -> OG | AC20: 3 | AD20: 4.99
B21: 7010 | D21: =VLOOKUP(B21,LEDEN!A:B,2,FALSE) -> VERMEULEN Johan | O21: 2 | Q21: 60 | S21: 7 | U21: =IF(S21=0," ",TRUNC(Q21/S21,2)) -> 8.57 | W21: 38 | Y21: =IF(Q21=0,"", IF(U21>=AD21,"PR",IF(U21<AC21,"OG","MG"))) -> PR | AC21: 3 | AD21: 4.99
B22: 6713 | D22: =VLOOKUP(B22,LEDEN!A:B,2,FALSE) -> VAN ACKER Johan | O22: 2 | Q22: 60 | S22: 23 | U22: 2.6 | W22: 15 | Y22: =IF(Q22=0,"", IF(U22>=AD22,"PR",IF(U22<AC22,"OG","MG"))) -> OG | AC22: 3 | AD22: 4.99
D23: =VLOOKUP(B23,LEDEN!A:B,2,FALSE) ->  | AC23: 3 | AD23: 4.99
B24: EINDRESULTAAT | O24: =SUM(O20:P23) -> 4 | Q24: =SUM(Q20:R23) -> 143 | S24: =SUM(S20:T23) -> 43 | U24: =IF(S24=0," ",TRUNC(Q24/S24,2)) -> 3.32 | W24: =MAX(W20:X23) -> 38 | Y24: MG | AA24: 2
B26: 6713 | D26: =VLOOKUP(B26,LEDEN!A:B,2,FALSE) -> VAN ACKER Johan | M26: =VLOOKUP(B26,LEDEN!A:C,3,FALSE) -> KBCAW
B27: 7010 | D27: =VLOOKUP(B27,LEDEN!A:B,2,FALSE) -> VERMEULEN Johan | O27: 0 | Q27: 54 | S27: 21 | U27: =IF(S27=0," ",TRUNC(Q27/S27,2)) -> 2.57 | W27: 13 | Y27: =IF(Q27=0,"", IF(U27>=AD27,"PR",IF(U27<AC27,"OG","MG"))) -> OG | AC27: 3 | AD27: 4.99
B28: 6428 | D28: =VLOOKUP(B28,LEDEN!A:B,2,FALSE) -> MEULEMAN Rudy | O28: 0 | Q28: 16 | S28: 13 | U28: =IF(S28=0," ",TRUNC(Q28/S28,2)) -> 1.23 | W28: 9 | Y28: =IF(Q28=0,"", IF(U28>=AD28,"PR",IF(U28<AC28,"OG","MG"))) -> OG | AC28: 3 | AD28: 4.99
B29: 8672 | D29: =VLOOKUP(B29,LEDEN!A:B,2,FALSE) -> DEMOOR Danny | O29: 0 | Q29: 35 | S29: 23 | U29: 1.52 | W29: 14 | Y29: =IF(Q29=0,"", IF(U29>=AD29,"PR",IF(U29<AC29,"OG","MG"))) -> OG | AC29: 3 | AD29: 4.99
D30: =VLOOKUP(B30,LEDEN!A:B,2,FALSE) ->  | AC30: 3 | AD30: 4.99
B31: EINDRESULTAAT | O31: =SUM(O27:P30) -> 0 | Q31: =SUM(Q27:R30) -> 105 | S31: =SUM(S27:T30) -> 57 | U31: =IF(S31=0," ",TRUNC(Q31/S31,2)) -> 1.84 | W31: =MAX(W27:X30) -> 14 | Y31: OG | AA31: 4
B33: 7010 | D33: =VLOOKUP(B33,LEDEN!A:B,2,FALSE) -> VERMEULEN Johan | M33: =VLOOKUP(B33,LEDEN!A:C,3,FALSE) -> OS
B34: 6713 | D34: =VLOOKUP(B34,LEDEN!A:B,2,FALSE) -> VAN ACKER Johan | O34: 2 | Q34: 60 | S34: 21 | U34: =IF(S34=0," ",TRUNC(Q34/S34,2)) -> 2.85 | W34: 17 | Y34: =IF(Q34=0,"", IF(U34>=AD34,"PR",IF(U34<AC34,"OG","MG"))) -> OG | AC34: 3 | AD34: 4.99
B35: 8672 | D35: =VLOOKUP(B35,LEDEN!A:B,2,FALSE) -> DEMOOR Danny | O35: 0 | Q35: 36 | S35: 7 | U35: =IF(S35=0," ",TRUNC(Q35/S35,2)) -> 5.14 | W35: 10 | Y35: =IF(Q35=0,"", IF(U35>=AD35,"PR",IF(U35<AC35,"OG","MG"))) -> PR | AC35: 3 | AD35: 4.99
B36: 6428 | D36: =VLOOKUP(B36,LEDEN!A:B,2,FALSE) -> MEULEMAN Rudy | O36: 0 | Q36: 51 | S36: 18 | U36: 2.83 | W36: 14 | Y36: =IF(Q36=0,"", IF(U36>=AD36,"PR",IF(U36<AC36,"OG","MG"))) -> OG | AC36: 3 | AD36: 4.99
D37: =VLOOKUP(B37,LEDEN!A:B,2,FALSE) ->  | AC37: 3 | AD37: 4.99
B38: EINDRESULTAAT | O38: =SUM(O34:P37) -> 2 | Q38: =SUM(Q34:R37) -> 147 | S38: =SUM(S34:T37) -> 46 | U38: =IF(S38=0," ",TRUNC(Q38/S38,2)) -> 3.19 | W38: =MAX(W34:X37) -> 17 | Y38: MG | AA38: 3
D40: =VLOOKUP(B40,LEDEN!A:B,2,FALSE) ->  | M40: =VLOOKUP(B40,LEDEN!A:C,3,FALSE) -> 
D41: =VLOOKUP(B41,LEDEN!A:B,2,FALSE) ->  | U41: =IF(S41=0," ",TRUNC(Q41/S41,2)) ->  | Y41: =IF(Q41=0,"", IF(U41>=AD41,"PR",IF(U41<AC41,"OG","MG"))) ->  | AC41: 3 | AD41: 4.99
D42: =VLOOKUP(B42,LEDEN!A:B,2,FALSE) ->  | U42: =IF(S42=0," ",TRUNC(Q42/S42,2)) ->  | Y42: =IF(Q42=0,"", IF(U42>=AD42,"PR",IF(U42<AC42,"OG","MG"))) ->  | AC42: 3 | AD42: 4.99
D43: =VLOOKUP(B43,LEDEN!A:B,2,FALSE) ->  | Y43: =IF(Q43=0,"", IF(U43>=AD43,"PR",IF(U43<AC43,"OG","MG"))) ->  | AC43: 3 | AD43: 4.99
D44: =VLOOKUP(B44,LEDEN!A:B,2,FALSE) ->  | AC44: 3 | AD44: 4.99
B45: EINDRESULTAAT | O45: =SUM(O41:P44) -> 0 | Q45: =SUM(Q41:R44) -> 0 | S45: =SUM(S41:T44) -> 0 | U45: =IF(S45=0," ",TRUNC(Q45/S45,2)) ->  | W45: =MAX(W41:X44) -> 0
D49: =VLOOKUP(B49,LEDEN!A:B,2,FALSE) ->  | M49: =VLOOKUP(B49,LEDEN!A:C,3,FALSE) -> 
D50: =VLOOKUP(B50,LEDEN!A:B,2,FALSE) ->  | U50: =IF(S50=0," ",TRUNC(Q50/S50,2)) ->  | Y50: =IF(Q50=0,"", IF(U50>=AD50,"PR",IF(U50<AC50,"OG","MG"))) ->  | AC50: 3 | AD50: 4.99
D51: =VLOOKUP(B51,LEDEN!A:B,2,FALSE) ->  | U51: =IF(S51=0," ",TRUNC(Q51/S51,2)) ->  | Y51: =IF(Q51=0,"", IF(U51>=AD51,"PR",IF(U51<AC51,"OG","MG"))) ->  | AC51: 3 | AD51: 4.99
D52: =VLOOKUP(B52,LEDEN!A:B,2,FALSE) ->  | Y52: =IF(Q52=0,"", IF(U52>=AD52,"PR",IF(U52<AC52,"OG","MG"))) ->  | AC52: 3 | AD52: 4.99
D53: =VLOOKUP(B53,LEDEN!A:B,2,FALSE) ->  | AC53: 3 | AD53: 4.99
B54: EINDRESULTAAT | O54: =SUM(O50:P53) -> 0 | Q54: =SUM(Q50:R53) -> 0 | S54: =SUM(S50:T53) -> 0 | U54: =IF(S54=0," ",TRUNC(Q54/S54,2)) ->  | W54: =MAX(W50:X53) -> 0
D56: =VLOOKUP(B56,LEDEN!A:B,2,FALSE) ->  | M56: =VLOOKUP(B56,LEDEN!A:C,3,FALSE) -> 
D57: =VLOOKUP(B57,LEDEN!A:B,2,FALSE) ->  | U57: =IF(S57=0," ",TRUNC(Q57/S57,2)) ->  | Y57: =IF(Q57=0,"", IF(U57>=AD57,"PR",IF(U57<AC57,"OG","MG"))) ->  | AC57: 3 | AD57: 4.99
D58: =VLOOKUP(B58,LEDEN!A:B,2,FALSE) ->  | U58: =IF(S58=0," ",TRUNC(Q58/S58,2)) ->  | Y58: =IF(Q58=0,"", IF(U58>=AD58,"PR",IF(U58<AC58,"OG","MG"))) ->  | AC58: 3 | AD58: 4.99
D59: =VLOOKUP(B59,LEDEN!A:B,2,FALSE) ->  | Y59: =IF(Q59=0,"", IF(U59>=AD59,"PR",IF(U59<AC59,"OG","MG"))) ->  | AC59: 3 | AD59: 4.99
D60: =VLOOKUP(B60,LEDEN!A:B,2,FALSE) ->  | AC60: 3 | AD60: 4.99
B61: EINDRESULTAAT | O61: =SUM(O57:P60) -> 0 | Q61: =SUM(Q57:R60) -> 0 | S61: =SUM(S57:T60) -> 0 | U61: =IF(S61=0," ",TRUNC(Q61/S61,2)) ->  | W61: =MAX(W57:X60) -> 0
D66: =TODAY() -> 2019-11-04 | S66: Verantwoordelijke

Sheet 4° ZF
A1: K O N I N K L I J K E B E L G I S C H E B I L J A R T B O N D | N1: - | O1: F E D E R A T I O N R O Y A L E B E L G E DE B I L L A R D
F2: VZW - Zetel - " Marie Thérèse " - Martelarenplein, 1 - 3000 Leuven
E3: GEWEST BEIDE VLAANDEREN
L4: 2019 - 2020
A5: UITSLAG GEWESTFINALE 4° : KLASSE VRIJSPEL MB
B7: Inrichting : | E7: ACADEMIE CENTRUM GENT | Q7: TSP | W7: MIN | Y7: MAX
B8: datum : | E8: zondag, 3 november 2019 | Q8: 60 | W8: 3 | Y8: 5
B10: NATID | D10: NAAM | M10: CLUB | O10: WEDP | Q10: BP | S10: Beurten | U10: GEM | W10: HR | Y10: OPM | AA10: Pl
B12: 6428 | D12: =VLOOKUP(B12,LEDEN!A:B,2,FALSE) -> MEULEMAN Rudy | M12: =VLOOKUP(B12,LEDEN!A:C,3,FALSE) -> ACG
B13: 8672 | D13: =VLOOKUP(B13,LEDEN!A:B,2,FALSE) -> DEMOOR Danny | U13: =IF(S13=0," ",TRUNC(Q13/S13,2)) ->  | Y13: =IF(Q13=0,"",IF(U13>=AD13,"PR",IF(U13<AC13,"OG","MG"))) ->  | AC13: 3 | AD13: 4.99
U14: =IF(S14=0," ",TRUNC(Q14/S14,2)) ->  | Y14: =IF(Q14=0,"", IF(U14>=AD14,"PR",IF(U14<AC14,"OG","MG"))) ->  | AC14: 3 | AD14: 4.99
Y15: =IF(Q15=0,"", IF(U15>=AD15,"PR",IF(U15<AC15,"OG","MG"))) ->  | AC15: 3 | AD15: 4.99
D16: =VLOOKUP(B16,LEDEN!A:B,2,FALSE) ->  | AC16: 3 | AD16: 4.99
B17: EINDRESULTAAT
B19: 8672 | D19: =VLOOKUP(B19,LEDEN!A:B,2,FALSE) -> DEMOOR Danny | M19: =VLOOKUP(B19,LEDEN!A:C,3,FALSE) -> ACG
B20: 8672 | D20: =VLOOKUP(B20,LEDEN!A:B,2,FALSE) -> DEMOOR Danny | U20: =IF(S20=0," ",TRUNC(Q20/S20,2)) ->  | Y20: =IF(Q20=0,"", IF(U20>=AD20,"PR",IF(U20<AC20,"OG","MG"))) ->  | AC20: 3 | AD20: 4.99
D21: =VLOOKUP(B21,LEDEN!A:B,2,FALSE) ->  | U21: =IF(S21=0," ",TRUNC(Q21/S21,2)) ->  | Y21: =IF(Q21=0,"", IF(U21>=AD21,"PR",IF(U21<AC21,"OG","MG"))) ->  | AC21: 3 | AD21: 4.99
D22: =VLOOKUP(B22,LEDEN!A:B,2,FALSE) ->  | Y22: =IF(Q22=0,"", IF(U22>=AD22,"PR",IF(U22<AC22,"OG","MG"))) ->  | AC22: 3 | AD22: 4.99
D23: =VLOOKUP(B23,LEDEN!A:B,2,FALSE) ->  | AC23: 3 | AD23: 4.99
B24: EINDRESULTAAT
B26: 6713 | D26: =VLOOKUP(B26,LEDEN!A:B,2,FALSE) -> VAN ACKER Johan | M26: =VLOOKUP(B26,LEDEN!A:C,3,FALSE) -> KBCAW
B27: 7010 | D27: =VLOOKUP(B27,LEDEN!A:B,2,FALSE) -> VERMEULEN Johan | U27: =IF(S27=0," ",TRUNC(Q27/S27,2)) ->  | Y27: =IF(Q27=0,"", IF(U27>=AD27,"PR",IF(U27<AC27,"OG","MG"))) ->  | AC27: 3 | AD27: 4.99
D28: =VLOOKUP(B28,LEDEN!A:B,2,FALSE) ->  | U28: =IF(S28=0," ",TRUNC(Q28/S28,2)) ->  | Y28: =IF(Q28=0,"", IF(U28>=AD28,"PR",IF(U28<AC28,"OG","MG"))) ->  | AC28: 3 | AD28: 4.99
D29: =VLOOKUP(B29,LEDEN!A:B,2,FALSE) ->  | Y29: =IF(Q29=0,"", IF(U29>=AD29,"PR",IF(U29<AC29,"OG","MG"))) ->  | AC29: 3 | AD29: 4.99
D30: =VLOOKUP(B30,LEDEN!A:B,2,FALSE) ->  | AC30: 3 | AD30: 4.99
B31: EINDRESULTAAT
B33: 7010 | D33: =VLOOKUP(B33,LEDEN!A:B,2,FALSE) -> VERMEULEN Johan | M33: =VLOOKUP(B33,LEDEN!A:C,3,FALSE) -> OS
B34: 6713 | D34: =VLOOKUP(B34,LEDEN!A:B,2,FALSE) -> VAN ACKER Johan | U34: =IF(S34=0," ",TRUNC(Q34/S34,2)) ->  | Y34: =IF(Q34=0,"", IF(U34>=AD34,"PR",IF(U34<AC34,"OG","MG"))) ->  | AC34: 3 | AD34: 4.99
U35: =IF(S35=0," ",TRUNC(Q35/S35,2)) ->  | Y35: =IF(Q35=0,"", IF(U35>=AD35,"PR",IF(U35<AC35,"OG","MG"))) ->  | AC35: 3 | AD35: 4.99
Y36: =IF(Q36=0,"", IF(U36>=AD36,"PR",IF(U36<AC36,"OG","MG"))) ->  | AC36: 3 | AD36: 4.99
D37: =VLOOKUP(B37,LEDEN!A:B,2,FALSE) ->  | AC37: 3 | AD37: 4.99
B38: EINDRESULTAAT
D40: =VLOOKUP(B40,LEDEN!A:B,2,FALSE) ->  | M40: =VLOOKUP(B40,LEDEN!A:C,3,FALSE) -> 
D41: =VLOOKUP(B41,LEDEN!A:B,2,FALSE) ->  | U41: =IF(S41=0," ",TRUNC(Q41/S41,2)) ->  | Y41: =IF(Q41=0,"", IF(U41>=AD41,"PR",IF(U41<AC41,"OG","MG"))) ->  | AC41: 3 | AD41: 4.99
D42: =VLOOKUP(B42,LEDEN!A:B,2,FALSE) ->  | U42: =IF(S42=0," ",TRUNC(Q42/S42,2)) ->  | Y42: =IF(Q42=0,"", IF(U42>=AD42,"PR",IF(U42<AC42,"OG","MG"))) ->  | AC42: 3 | AD42: 4.99
D43: =VLOOKUP(B43,LEDEN!A:B,2,FALSE) ->  | Y43: =IF(Q43=0,"", IF(U43>=AD43,"PR",IF(U43<AC43,"OG","MG"))) ->  | AC43: 3 | AD43: 4.99
D44: =VLOOKUP(B44,LEDEN!A:B,2,FALSE) ->  | AC44: 3 | AD44: 4.99
B45: EINDRESULTAAT | O45: =SUM(O41:P44) -> 0 | Q45: =SUM(Q41:R44) -> 0 | S45: =SUM(S41:T44) -> 0 | U45: =IF(S45=0," ",TRUNC(Q45/S45,2)) ->  | W45: =MAX(W41:X44) -> 0
D49: =VLOOKUP(B49,LEDEN!A:B,2,FALSE) ->  | M49: =VLOOKUP(B49,LEDEN!A:C,3,FALSE) -> 
D50: =VLOOKUP(B50,LEDEN!A:B,2,FALSE) ->  | U50: =IF(S50=0," ",TRUNC(Q50/S50,2)) ->  | Y50: =IF(Q50=0,"", IF(U50>=AD50,"PR",IF(U50<AC50,"OG","MG"))) ->  | AC50: 3 | AD50: 4.99
D51: =VLOOKUP(B51,LEDEN!A:B,2,FALSE) ->  | U51: =IF(S51=0," ",TRUNC(Q51/S51,2)) ->  | Y51: =IF(Q51=0,"", IF(U51>=AD51,"PR",IF(U51<AC51,"OG","MG"))) ->  | AC51: 3 | AD51: 4.99
D52: =VLOOKUP(B52,LEDEN!A:B,2,FALSE) ->  | Y52: =IF(Q52=0,"", IF(U52>=AD52,"PR",IF(U52<AC52,"OG","MG"))) ->  | AC52: 3 | AD52: 4.99
D53: =VLOOKUP(B53,LEDEN!A:B,2,FALSE) ->  | AC53: 3 | AD53: 4.99
B54: EINDRESULTAAT | O54: =SUM(O50:P53) -> 0 | Q54: =SUM(Q50:R53) -> 0 | S54: =SUM(S50:T53) -> 0 | U54: =IF(S54=0," ",TRUNC(Q54/S54,2)) ->  | W54: =MAX(W50:X53) -> 0
D56: =VLOOKUP(B56,LEDEN!A:B,2,FALSE) ->  | M56: =VLOOKUP(B56,LEDEN!A:C,3,FALSE) -> 
D57: =VLOOKUP(B57,LEDEN!A:B,2,FALSE) ->  | U57: =IF(S57=0," ",TRUNC(Q57/S57,2)) ->  | Y57: =IF(Q57=0,"", IF(U57>=AD57,"PR",IF(U57<AC57,"OG","MG"))) ->  | AC57: 3 | AD57: 4.99
D58: =VLOOKUP(B58,LEDEN!A:B,2,FALSE) ->  | U58: =IF(S58=0," ",TRUNC(Q58/S58,2)) ->  | Y58: =IF(Q58=0,"", IF(U58>=AD58,"PR",IF(U58<AC58,"OG","MG"))) ->  | AC58: 3 | AD58: 4.99
D59: =VLOOKUP(B59,LEDEN!A:B,2,FALSE) ->  | Y59: =IF(Q59=0,"", IF(U59>=AD59,"PR",IF(U59<AC59,"OG","MG"))) ->  | AC59: 3 | AD59: 4.99
D60: =VLOOKUP(B60,LEDEN!A:B,2,FALSE) ->  | AC60: 3 | AD60: 4.99
B61: EINDRESULTAAT | O61: =SUM(O57:P60) -> 0 | Q61: =SUM(Q57:R60) -> 0 | S61: =SUM(S57:T60) -> 0 | U61: =IF(S61=0," ",TRUNC(Q61/S61,2)) ->  | W61: =MAX(W57:X60) -> 0
D66: =TODAY() -> 2019-11-04 | S66: Verantwoordelijke

Sheet Blad2

Sheet Blad3

Sheet databank
A1: competitie | B1: NATID | C1: CODESPORTJAAR | D1: CODESOORT | E1: CODECAT | F1: CODEOPM | G1: CODEDISCIPLINE | H1: CODEFORMAAT | I1: GEM | J1: NCAT
B2: =[2]Blad2!B1 -> 0 | C2: 24 | D2: =[2]Blad2!E1 -> 5 | E2: =[2]Blad2!F1 -> 5 | F2: =[2]Blad2!H1 ->  | G2: =[2]Blad2!I1 -> 1 | H2: 2 | I2: =[2]Blad2!K1 ->  | J2: =[2]Blad2!L1 -> 
A3: GWVOORRONDE | B3: =[2]Blad2!B2 -> 0 | C3: 24 | D3: =[2]Blad2!E2 -> 5 | E3: =[2]Blad2!F2 -> 5 | F3: =[2]Blad2!H2 ->  | G3: =[2]Blad2!I2 -> 1 | H3: 2 | I3: =[2]Blad2!K2 ->  | J3: =[2]Blad2!L2 -> 
A4: GWVOORRONDE | B4: =[2]Blad2!B3 -> 0 | C4: 24 | D4: =[2]Blad2!E3 -> 5 | E4: =[2]Blad2!F3 -> 5 | F4: =[2]Blad2!H3 ->  | G4: =[2]Blad2!I3 -> 1 | H4: 2 | I4: =[2]Blad2!K3 ->  | J4: =[2]Blad2!L3 -> 
A5: GWVOORRONDE | B5: =[2]Blad2!B4 -> 0 | C5: 24 | D5: =[2]Blad2!E4 -> 5 | E5: =[2]Blad2!F4 -> 5 | F5: =[2]Blad2!H4 ->  | G5: =[2]Blad2!I4 -> 1 | H5: 2 | I5: =[2]Blad2!K4 ->  | J5: =[2]Blad2!L4 -> 
A6: GWVOORRONDE | B6: =[2]Blad2!B5 -> 0 | C6: 24 | D6: =[2]Blad2!E5 -> 5 | E6: =[2]Blad2!F5 -> 5 | F6: =[2]Blad2!H5 ->  | G6: =[2]Blad2!I5 -> 1 | H6: 2 | I6: =[2]Blad2!K5 ->  | J6: =[2]Blad2!L5 -> 
A7: GWVOORRONDE | B7: =[2]Blad2!B6 -> 0 | C7: 24 | D7: =[2]Blad2!E6 -> 5 | E7: =[2]Blad2!F6 -> 5 | F7: =[2]Blad2!H6 ->  | G7: =[2]Blad2!I6 -> 1 | H7: 2 | I7: =[2]Blad2!K6 ->  | J7: =[2]Blad2!L6 -> 
A9: GWVOORRONDE | B9: =[2]Blad2!B8 -> 0 | C9: 24 | D9: =[2]Blad2!E8 -> 5 | E9: =[2]Blad2!F8 -> 6 | F9: =[2]Blad2!H8 ->  | G9: =[2]Blad2!I8 -> 1 | H9: 2 | I9: =[2]Blad2!K8 ->  | J9: =[2]Blad2!L8 -> 
A10: GWVOORRONDE | B10: =[2]Blad2!B9 -> 0 | C10: 24 | D10: =[2]Blad2!E9 -> 5 | E10: =[2]Blad2!F9 -> 6 | F10: =[2]Blad2!H9 ->  | G10: =[2]Blad2!I9 -> 1 | H10: 2 | I10: =[2]Blad2!K9 ->  | J10: =[2]Blad2!L9 -> 
A11: GWVOORRONDE | B11: =[2]Blad2!B10 -> 0 | C11: 24 | D11: =[2]Blad2!E10 -> 5 | E11: =[2]Blad2!F10 -> 6 | F11: =[2]Blad2!H10 ->  | G11: =[2]Blad2!I10 -> 1 | H11: 2 | I11: =[2]Blad2!K10 ->  | J11: =[2]Blad2!L10 -> 
A12: GWVOORRONDE | B12: =[2]Blad2!B11 -> 0 | C12: 24 | D12: =[2]Blad2!E11 -> 5 | E12: =[2]Blad2!F11 -> 6 | F12: =[2]Blad2!H11 ->  | G12: =[2]Blad2!I11 -> 1 | H12: 2 | I12: =[2]Blad2!K11 ->  | J12: =[2]Blad2!L11 -> 
A13: GWVOORRONDE | B13: =[2]Blad2!B12 -> 0 | C13: 24 | D13: =[2]Blad2!E12 -> 5 | E13: =[2]Blad2!F12 -> 6 | F13: =[2]Blad2!H12 ->  | G13: =[2]Blad2!I12 -> 1 | H13: 2 | I13: =[2]Blad2!K12 ->  | J13: =[2]Blad2!L12 -> 
A14: GWVOORRONDE | B14: =[2]Blad2!B13 -> 0 | C14: 24 | D14: =[2]Blad2!E13 -> 5 | E14: =[2]Blad2!F13 -> 6 | F14: =[2]Blad2!H13 ->  | G14: =[2]Blad2!I13 -> 1 | H14: 2 | I14: =[2]Blad2!K13 ->  | J14: =[2]Blad2!L13 -> 
A16: GWVOORRONDE | B16: =[2]Blad2!B15 -> 0 | C16: 24 | D16: =[2]Blad2!E15 -> 5 | E16: 7 | F16: =[2]Blad2!H15 ->  | G16: =[2]Blad2!I15 -> 1 | H16: 2 | I16: =[2]Blad2!K15 ->  | J16: =[2]Blad2!L15 -> 
A17: GWVOORRONDE | B17: =[2]Blad2!B16 -> 0 | C17: 24 | D17: =[2]Blad2!E16 -> 5 | E17: 7 | F17: =[2]Blad2!H16 ->  | G17: =[2]Blad2!I16 -> 1 | H17: 2 | I17: =[2]Blad2!K16 ->  | J17: =[2]Blad2!L16 -> 
A18: GWVOORRONDE | B18: =[2]Blad2!B17 -> 0 | C18: 24 | D18: =[2]Blad2!E17 -> 5 | E18: 7 | F18: =[2]Blad2!H17 ->  | G18: =[2]Blad2!I17 -> 1 | H18: 2 | I18: =[2]Blad2!K17 ->  | J18: =[2]Blad2!L17 -> 
A19: GWVOORRONDE | B19: =[2]Blad2!B18 -> 0 | C19: 24 | D19: =[2]Blad2!E18 -> 5 | E19: 7 | F19: =[2]Blad2!H18 ->  | G19: =[2]Blad2!I18 -> 1 | H19: 2 | I19: =[2]Blad2!K18 ->  | J19: =[2]Blad2!L18 -> 
A20: GWVOORRONDE | B20: =[2]Blad2!B19 -> 0 | C20: 24 | D20: =[2]Blad2!E19 -> 5 | E20: 7 | F20: =[2]Blad2!H19 ->  | G20: =[2]Blad2!I19 -> 1 | H20: 2 | I20: =[2]Blad2!K19 ->  | J20: =[2]Blad2!L19 -> 
A21: GWVOORRONDE | B21: =[2]Blad2!B20 -> 0 | C21: 24 | D21: =[2]Blad2!E20 -> 5 | E21: 7 | F21: =[2]Blad2!H20 ->  | G21: =[2]Blad2!I20 -> 1 | H21: 2 | I21: =[2]Blad2!K20 ->  | J21: =[2]Blad2!L20 -> 

Sheet dataweb
A1: Lic | B1: CLUB-ID | C1: CLUBNAAM | D1: NAAM SPELER | Z1: VKP15 | AA1: VK15G | AB1: VK15OPM | AC1: VK15NP
A2: =[2]Blad2!B1 -> 0 | D2: =[2]SAMENVATTING!B9 ->  | Z2: =IF(LEN(AE2)>0,HLOOKUP(AE2,$E$23:$AG$24,2,0)) -> 60 | AA2: =[2]SAMENVATTING!J9 ->  | AB2: =IF(LEN(AG2)>0,HLOOKUP(AG2,$E$27:$AD$28,2,0)) ->  | AC2: =IF(LEN(AF2)>0,HLOOKUP(AF2,$E$23:$AG$24,2,0)) ->  | AE2: =databank!E2 -> 5 | AF2: =databank!J2 ->  | AG2: =databank!F2 -> 
A3: =[2]Blad2!B2 -> 0 | D3: =[2]SAMENVATTING!B10 ->  | Z3: 60 | AA3: =[2]SAMENVATTING!J10 ->  | AE3: =databank!E3 -> 5 | AF3: =databank!J3 ->  | AG3: =databank!F3 -> 
A4: =[2]Blad2!B3 -> 0 | D4: =[2]SAMENVATTING!B11 ->  | Z4: 60 | AA4: =[2]SAMENVATTING!J11 ->  | AE4: =databank!E4 -> 5 | AF4: =databank!J4 ->  | AG4: =databank!F4 -> 
A5: =[2]Blad2!B4 -> 0 | D5: =[2]SAMENVATTING!B12 ->  | Z5: 60 | AA5: =[2]SAMENVATTING!J12 ->  | AE5: =databank!E5 -> 5 | AF5: =databank!J5 ->  | AG5: =databank!F5 -> 
A6: =[2]Blad2!B5 -> 0 | D6: =[2]SAMENVATTING!B13 ->  | Z6: 60 | AA6: =[2]SAMENVATTING!J13 ->  | AE6: =databank!E6 -> 5 | AF6: =databank!J6 ->  | AG6: =databank!F6 -> 
A7: =[2]Blad2!B6 -> 0 | D7: =[2]SAMENVATTING!B14 ->  | Z7: 60 | AA7: =[2]SAMENVATTING!J14 ->  | AE7: =databank!E7 -> 5 | AF7: =databank!J7 ->  | AG7: =databank!F7 -> 
A9: =[2]Blad2!B8 -> 0 | D9: =[2]SAMENVATTING!B16 ->  | Z9: =IF(LEN(AE9)>0,HLOOKUP(AE9,$E$23:$AG$24,2,0)) -> 90 | AA9: =[2]SAMENVATTING!J16 ->  | AB9: =IF(LEN(AG9)>0,HLOOKUP(AG9,$E$27:$AD$28,2,0)) ->  | AC9: =IF(LEN(AF9)>0,HLOOKUP(AF9,$E$23:$AG$24,2,0)) ->  | AE9: =databank!E9 -> 6 | AF9: =databank!J9 ->  | AG9: =databank!F9 -> 
A10: =[2]Blad2!B9 -> 0 | D10: =[2]SAMENVATTING!B17 ->  | Z10: 90 | AA10: =[2]SAMENVATTING!J17 ->  | AE10: =databank!E10 -> 6 | AF10: =databank!J10 ->  | AG10: =databank!F10 -> 
A11: =[2]Blad2!B10 -> 0 | D11: =[2]SAMENVATTING!B18 ->  | Z11: 90 | AA11: =[2]SAMENVATTING!J18 ->  | AE11: =databank!E11 -> 6 | AF11: =databank!J11 ->  | AG11: =databank!F11 -> 
A12: =[2]Blad2!B11 -> 0 | D12: =[2]SAMENVATTING!B19 ->  | Z12: 90 | AA12: =[2]SAMENVATTING!J19 ->  | AE12: =databank!E12 -> 6 | AF12: =databank!J12 ->  | AG12: =databank!F12 -> 
A13: =[2]Blad2!B12 -> 0 | D13: =[2]SAMENVATTING!B20 ->  | Z13: 90 | AA13: =[2]SAMENVATTING!J20 ->  | AE13: =databank!E13 -> 6 | AF13: =databank!J13 ->  | AG13: =databank!F13 -> 
A14: =[2]Blad2!B13 -> 0 | D14: =[2]SAMENVATTING!B21 ->  | Z14: 90 | AA14: =[2]SAMENVATTING!J21 ->  | AE14: =databank!E14 -> 6 | AF14: =databank!J14 ->  | AG14: =databank!F14 -> 
A16: =[2]Blad2!B15 -> 0 | D16: =[2]SAMENVATTING!B24 ->  | Z16: =IF(LEN(AE16)>0,HLOOKUP(AE16,$E$23:$AG$24,2,0)) -> 120 | AA16: =[2]SAMENVATTING!J24 ->  | AB16: =IF(LEN(AG16)>0,HLOOKUP(AG16,$E$27:$AD$28,2,0)) ->  | AC16: =IF(LEN(AF16)>0,HLOOKUP(AF16,$E$23:$AG$24,2,0)) ->  | AE16: =databank!E16 -> 7 | AF16: =databank!J16 ->  | AG16: =databank!F16 -> 
A17: =[2]Blad2!B16 -> 0 | D17: =[2]SAMENVATTING!B25 ->  | Z17: 120 | AA17: =[2]SAMENVATTING!J25 ->  | AE17: =databank!E17 -> 7 | AF17: =databank!J17 ->  | AG17: =databank!F17 -> 
A18: =[2]Blad2!B17 -> 0 | D18: =[2]SAMENVATTING!B26 ->  | Z18: 120 | AA18: =[2]SAMENVATTING!J26 ->  | AE18: =databank!E18 -> 7 | AF18: =databank!J18 ->  | AG18: =databank!F18 -> 
A19: =[2]Blad2!B18 -> 0 | D19: =[2]SAMENVATTING!B27 ->  | Z19: 120 | AA19: =[2]SAMENVATTING!J27 ->  | AE19: =databank!E19 -> 7 | AF19: =databank!J19 ->  | AG19: =databank!F19 -> 
A20: =[2]Blad2!B19 -> 0 | D20: =[2]SAMENVATTING!B28 ->  | Z20: 120 | AA20: =[2]SAMENVATTING!J28 ->  | AE20: =databank!E20 -> 7 | AF20: =databank!J20 ->  | AG20: =databank!F20 -> 
A21: =[2]Blad2!B20 -> 0 | D21: =[2]SAMENVATTING!B29 ->  | Z21: 120 | AA21: =[2]SAMENVATTING!J29 ->  | AE21: =databank!E21 -> 7 | AF21: =databank!J21 ->  | AG21: =databank!F21 -> 
D23: cat | E23: 9 | Z23: 8 | AA23: 7 | AB23: 6 | AC23: 5
D24: punten | E24: 300 | Z24: 200 | AA24: 120 | AB24: 90 | AC24: 60
D27: code | E27: 1 | Z27: 2 | AA27: 3 | AB27: 5 | AC27: 27 | AD27: 28
D28: opm | E28: PR | Z28: PR 3/4 | AA28: OG | AB28: MG | AC28: DPR | AD28: DRPR

Sheet LEDEN
D1: NS
A2: 8758 | B2: DUYM Ignace | C2: ACG
A3: 4505 | B3: BRACKE Peter | C3: ACG
A4: 2314 | B4: SONCK ROBBY | C4: ACG
A5: 6927 | B5: DUJARDIN Luc | C5: ACG
A6: 4432 | B6: BAETE Jean-Pierre | C6: ACG
A7: 6705 | B7: BERNAERDT Roland | C7: ACG
A8: 4496 | B8: VAN HANEGEM Izaak | C8: ACG
A9: 7125 | B9: Nuytten Renold | C9: ACG
A10: 7302 | B10: DE CRAECKER Werner | C10: ACG
A11: 9800 | B11: DE CRAECKER Emma (jeugd) | C11: ACG
A12: 9826 | B12: DE BIE Rudy | C12: ACG
A13: 9261 | B13: de MEULEMEESTER Cédric | C13: ACG
A14: 1036 | B14: DEPOORTER MIEKE | C14: ACG
A15: 5587 | B15: GERMONPRE Luc | C15: ACG
A16: 8671 | B16: DE MUYNCK Jean-Pierre | C16: ACG
A17: 8672 | B17: DEMOOR Danny | C17: ACG
A18: 6428 | B18: MEULEMAN Rudy | C18: ACG
A19: 9975 | B19: WILLEMS Peter | C19: ACG
A20: 7303 | B20: FRANCK Franky | C20: ACG
A21: 8888 | B21: DE MEYER Erik | C21: ACG
A23: 4854 | B23: ROSIER Peter | C23: BCSK
A24: 4895 | B24: DE BLOCK Omer | C24: BCSK
A25: 6488 | B25: DE WITTE Franky | C25: BCSK
A26: 6489 | B26: DE WITTE Jeffrey | C26: BCSK
A27: 7812 | B27: BOERJAN Pierre | C27: BCSK
A28: 8674 | B28: VAN LEUVENHAGE Dylan | C28: BCSK
A29: 8900 | B29: JANSSENS Dirk | C29: BCSK
A30: 1294 | B30: BACKMAN Werner | C30: BCSK
A31: 8133 | B31: VAN CRAENENBROECK Theo | C31: BCSK
A32: 6784B | B32: VAN BIESEN Tom | C32: BCSK
A33: 9441 | B33: ROSIER Nick | C33: BCSK
A34: 9442 | B34: VERGULT François | C34: BCSK
A35: 4894 | B35: DAELMAN Walther | C35: BCSK
A36: 8507 | B36: TROONBEECKX Willy | C36: BCSK
A37: 8073 | B37: DE WITTE Tamara | C37: BCSK
A38: 8385 | B38: GODDAERT Johan | C38: BCSK
A39: 9955 | B39: DE RUDDER David | C39: BCSK
A40: 9348 | B40: WOUTERS Marc | C40: BCSK
A41: 8650 | B41: DE BOEY Gijs | C41: BCSK
A42: 7918 | B42: ROSIER Noah | C42: BCSK
A43: 7562 | B43: THUY Marc | C43: BCSK
A44: 7915 | B44: DE LEEUW Willy | C44: BCSK | D44: NS
A45: 7918 | B45: ROSIER Noah | C45: BCSK | D45: NS
A47: 8689 | B47: DEWAELE Eddy | C47: CBC-DLS
A48: 8690 | B48: JOYE Rik | C48: CBC-DLS
A49: 8704 | B49: CALLENS Filip | C49: CBC-DLS
A50: 8691 | B50: BRUNEEL Norbert | C50: CBC-DLS
A51: 8649 | B51: VAN DE VELDE Desire | C51: CBC-DLS
A52: 8658 | B52: MONDELAERS Dries | C52: CBC-DLS
A53: 8652 | B53: TANGHE Freddy | C53: CBC-DLS
A54: 8036 | B54: VERCAIGNE Mario | C54: CBC-DLS
A55: 8044 | B55: VANDENBULCKE Paul | C55: CBC-DLS
A56: 8044 | B56: VANDENBULCKE Paul | C56: CBC-DLS | D56: NS
A57: 8036 | B57: VERCAIGNE Mario | C57: CBC-DLS | D57: NS
A58: 8048 | B58: DELESIE Kris | C58: CBC-DLS | D58: NS
A60: 4192 | B60: BEAUJEAN Karel | C60: CM
A61: 9059 | B61: BERTEN Franky | C61: CM
A62: 5500 | B62: ROELANTS Karel | C62: CM
A63: 4143 | B63: VAN CRAEN Albert | C63: CM
A64: 6189 | B64: VANDENABEELE Marc | C64: CM
A65: 7796 | B65: DE LAET Cassy | C65: CM
A66: 7822 | B66: SCHOUTETENS Marc | C66: CM
A67: 9512 | B67: DE SCHILDER Leon | C67: CM
A68: 9513 | B68: CARPAY Henri | C68: CM
A69: 4682 | B69: SCHOUTETENS Pieter | C69: CM
A70: 9413 | B70: DANNEELS Laurent | C70: DK
A71: 5682 | B71: DELANGHE Lievin | C71: DK
A72: 4188 | B72: RONDELEZ Noel | C72: DK
A73: 4180 | B73: CONSTANT Geert | C73: DK
A75: 4763 | B75: CASTELEYN Rik | C75: K.DOS
A76: 1061 | B76: GELDHOF Frank | C76: K.DOS
A77: 4762 | B77: CASTELEYN Henk | C77: K.DOS
A78: 4765 | B78: DEBAES Peter | C78: K.DOS
A79: 4768 | B79: DEDIER Georges | C79: K.DOS
A80: 8156 | B80: DETOLLENAERE Jonny | C80: K.DOS
A81: 4776 | B81: HOUTHAEVE Jean-Marie | C81: K.DOS
A82: 4778 | B82: LEYN Philippe | C82: K.DOS
A83: 7697 | B83: GHESQUIERE Jozef | C83: K.DOS
A84: 8090 | B84: VANLAUWE Stephan | C84: K.DOS
A85: 4693 | B85: MOSTREY Peter | C85: K.DOS
A86: 4733 | B86: NUYTTENS Gino | C86: K.DOS
A87: 6720 | B87: WILLE Etienne | C87: K.DOS
A88: 6094 | B88: VANACKER Steven | C88: K.DOS
A89: 9461 | B89: RONDELEZ Kenneth | C89: K.DOS
A90: 2299 | B90: VANTHOURNOUT Michel | C90: K.DOS
A91: 1055 | B91: BRUWIER Erwin | C91: K.DOS
A92: 8705 | B92: STEVENS Ilse | C92: K.DOS
A93: 4774 | B93: DUYCK Peter | C93: K.DOS
A94: 8697 | B94: MELNYTSCHENKO Cédric | C94: K.DOS
A95: 4759 | B95: WARLOP Luc | C95: K.DOS
A96: 1060 | B96: Wittevrongel Dirk | C96: K.DOS
A97: 9018 | B97: GHEVART Jean | C97: K.DOS
A98: 9957 | B98: BRUWIER Ludwin | C98: K.DOS
A99: 9958 | B99: DEBLAUWE Dimitri | C99: K.DOS
A100: 9766 | B100: VANNESTE Philip | C100: K.DOS
A101: 9045 | B101: WALLART Jean-Charles | C101: K.DOS
A102: 7529 | B102: VASSEUR Patrick | C102: K.DOS
A103: 8002 | B103: MAES Pascal | C103: K.DOS | D103: NS
A105: 4454 | B105: DEPOORTER Reginald | C105: GS
A106: 4466 | B106: TREMERIE Walter | C106: GS
A107: 4541 | B107: DELLAERT Marc | C107: GS
A108: 4587 | B108: VERSTRAETEN Frank | C108: GS
A109: 6701 | B109: BROCHE Philippe | C109: GS
A110: 6703 | B110: CLAUS Pascal | C110: GS
A111: 7203 | B111: DELARUE Dirk | C111: GS
A112: 7498 | B112: VAN DAM Jens | C112: GS
A113: 8163 | B113: DE WEIRDT Jean-Marie | C113: GS
A114: 8654 | B114: BAETSLE Peter | C114: GS
A115: 8890 | B115: VAN HOLLE Jean-Pierre | C115: GS
A116: 4506 | B116: BRACKE Tom | C116: GS
A117: 9419 | B117: MOEYKENS Biacio | C117: GS
A118: 9959 | B118: DE DEYNE Firmin | C118: GS
A119: 8655 | B119: TOLLEBEKE Arthur | C119: GS
A120: 4394 | B120: CREVE Camiel | C120: GS
A122: 8387 | B122: HEBBELINCK Luc | C122: K&V | D122: NS
A123: 8918 | B123: VANDENBERGHE Pascal | C123: K&V
A124: 9428 | B124: WIELFAERT Curt | C124: K&V
A125: 9429 | B125: HERREMAN Luc | C125: K&V
A126: 9520 | B126: VANDERLINDEN Aimé | C126: K&V
A127: 9960 | B127: DE VOS Antoon | C127: K&V
A128: 9262 | B128: CLAEYS Hubert | C128: K&V
A129: 9782 | B129: D'HAEZE Adolf | C129: K&V
A130: 9781 | B130: DOS SANTOS Jose | C130: K&V
A131: 9608 | B131: VAN BREDA Mike | C131: K&V
A132: 9522 | B132: LEEMAN Rudy | C132: K&V
A133: 9238 | B133: SIMONS Rudi | C133: K&V
A134: 9264 | B134: REYCHLER Hedwig | C134: K&V
A135: 9262 | B135: CLAEYS Hubert | C135: K&V
A136: 8035 | B136: VAN THUYNE Rudy | C136: K&V
A138: 2944 | B138: t SEYEN Roland | C138: K.BR
A139: 4148 | B139: DE CUYPER René | C139: K.BR
A140: 4150 | B140: DEVROE Eddy | C140: K.BR
A141: 4156 | B141: SEYS Norbert | C141: K.BR
A142: 4214 | B142: DE BAERE Karel | C142: K.BR
A143: 4217 | B143: DE GRAEVE David | C143: K.BR
A144: 4222 | B144: DE QUEKER Guido | C144: K.BR
A145: 4223 | B145: DRUWEL Francois | C145: K.BR
A146: 4224 | B146: GUIDE Jean-Pierre | C146: K.BR
A147: 4241 | B147: VANHECKE Rik | C147: K.BR
A148: 4242 | B148: VERCRUYSSE Johan | C148: K.BR
A149: 4557 | B149: SERWEYTENS Lieven | C149: K.BR
A150: 4779 | B150: LEYS Bart | C150: K.BR
A151: 5186 | B151: DEFRUYT Dirk | C151: K.BR
A152: 5190 | B152: SAVER André | C152: K.BR
A153: 5408 | B153: VANRAPENBUSCH Franky | C153: K.BR
A154: 5685 | B154: BOECKAERT Eric | C154: K.BR
A155: 5689 | B155: SAVER Koen | C155: K.BR
A156: 6081 | B156: QUITTELIER Stephane | C156: K.BR
A157: 7795 | B157: HACKE Jean-Marie | C157: K.BR
A158: 7797 | B158: BEIRENS Marc | C158: K.BR
A159: 8162 | B159: FLAMEE Kurt | C159: K.BR
A160: 8454 | B160: STUYVAERT Marijn | C160: K.BR
A161: 8669 | B161: DE CLERCK Jean | C161: K.BR
A162: 8670 | B162: SCHOE Henk | C162: K.BR
A163: 4185 | B163: DEPOORTER Daniël | C163: K.BR
A164: 9062 | B164: DE BUSSCHER Walter | C164: K.BR
A165: 8921 | B165: CHRISTIAENS Danny | C165: K.BR
A166: 7801 | B166: EISCHEN Frédéric | C166: K.BR
A167: 4250 | B167: COBBAERT Thierry | C167: K.BR
A168: 9257 | B168: MUS Hendrik | C168: K.BR
A169: 9258 | B169: STEFFENS Alain | C169: K.BR
A170: 4267 | B170: THOMAS Peter | C170: K.BR
A171: 4722 | B171: BLAUWBLOMME Henk | C171: K.BR
A172: 9256 | B172: DALLINGA Louis | C172: K.BR
A173: 8362 | B173: DEKRAKER Jean-Paul | C173: K.BR
A174: 5691 | B174: TORRES Manuel | C174: K.BR
A175: 4682 | B175: SCHOUTETENS Pieter | C175: K.BR
A176: 7462 | B176: CREYF Fernand | C176: K.BR
A177: 4071 | B177: DE BAERE Eddy | C177: K.BR
A178: 4644 | B178: DUMON Dirk | C178: K.BR
A179: 6680 | B179: FLAMEE Kurt | C179: K.BR
A180: 8881 | B180: HERPOEL Rony | C180: K.BR
A181: 4187 | B181: ROGIERS Marc | C181: K.BR
A182: 4184 | B182: DEPOORTER Chris | C182: K.BR
A183: 5439 | B183: DUCHEYNE Kenny | C183: K.BR
A184: 9279 | B184: DALINGA Meerten | C184: K.BR
A185: 4233 | B185: PIETERS Ronny | C185: K.BR
A186: 9778 | B186: POPPE Rudy | C186: K.BR
A187: 4363 | B187: PRIEUS Andy | C187: K.BR
A188: 4070 | B188: DE BAERE Cindy | C188: K.BR
A189: 8677 | B189: CAMPE Etienne | C189: K.BR
A190: 5678 | B190: VERSCHAEVE Edwin | C190: K.BR
A191: 8676 | B191: NEUBOURG Freddy | C191: K.BR
A192: 7036 | B192: MISMAN Eddy | C192: K.Br
A193: 7311 | B193: BUZEYN Jean | C193: K.Br | D193: NS
A194: 9595 | B194: VERBEURE Danny | C194: K.Br
A195: 6435 | B195: BELAEY DANNY | C195: K.Br
A196: 7874 | B196: MEERSMAN Chrisrtian | C196: K.Br | D196: NS
A197: 7866 | B197: VAN LAARHOVEN Roland | C197: K.Br | D197: NS
A198: 7865 | B198: VINK Michael | C198: K.Br | D198: NS
A199: 7052 | B199: TEMMERMAN Jurgen | C199: K.Br | D199: NS
A201: 4422 | B201: DE MEYER Rudi | C201: K.EBC
A202: 1022 | B202: MENHEER Leslie | C202: K.EBC
A203: 4473 | B203: DE BAETS Ronny | C203: K.EBC
A204: 4482 | B204: STAELENS Freddy | C204: K.EBC
A205: 4538 | B205: DE LOMBAERT Albert | C205: K.EBC
A206: 4539 | B206: DE MIL Christiaan | C206: K.EBC
A207: 4544 | B207: GEVAERT Michel | C207: K.EBC
A208: 4545 | B208: GOETHALS Armand | C208: K.EBC
... 583 more rows
